bitfinex/quotes_BTCUSD_20250803
["timestamp","ask_amount","ask_price","bid_price","bid_amount"]
[1754241400536,3.13353842,114390.0,114380.0,4e-05]
[1754241401361,3.14922715,114390.0,114380.0,4e-05]
[1754241401565,3.13032844,114390.0,114380.0,4e-05]
[1754241402466,3.15683977,114390.0,114350.0,0.19782312]
[1754241402677,2.538414,114380.0,114350.0,0.06390312]
[1754241402920,0.13388,114370.0,114350.0,0.06390312]
[1754241403133,2.538414,114360.0,114350.0,0.08368143]
[1754241403395,2.538414,114360.0,114350.0,0.08578143]
[1754241403605,2.538414,114360.0,114350.0,0.06600312]
[1754241405116,2.538414,114360.0,114350.0,0.06800312]
[1754241405657,2.540434,114360.0,114350.0,0.06800312]
[1754241405870,2.540434,114360.0,114350.0,0.06900312]
[1754241406771,2.607724,114360.0,114350.0,0.06395312]
[1754241406976,2.61591769,114360.0,114350.0,0.003]
[1754241407178,2.610864,114360.0,114350.0,0.003]
[1754241407396,2.61905506,114360.0,114350.0,0.003]
[1754241408025,2.64556639,114360.0,114350.0,0.003]
[1754241409916,2.61905506,114360.0,114350.0,0.003]
[1754241410493,2.45048335,114360.0,114350.0,0.003]
[1754241410922,2.353474,114350.0,114330.0,0.06674]
[1754241411149,0.13396,114350.0,114330.0,0.06674]
[1754241411368,2.353474,114340.0,114330.0,0.06674]
[1754241411518,2.353474,114340.0,114330.0,0.06884]
[1754241411944,2.353474,114340.0,114330.0,0.089112]
[1754241412147,2.353474,114340.0,114330.0,0.08958729]
[1754241413829,2.353474,114340.0,114330.0,0.06931529]
[1754241414767,0.03612189,114340.0,114330.0,0.06931529]
[1754241415214,2.353474,114340.0,114330.0,0.06931529]
[1754241416142,0.13396,114350.0,114330.0,0.06931529]
[1754241416372,2.159284,114340.0,114330.0,0.06931529]
[1754241416599,2.159284,114340.0,114330.0,0.08963882]
[1754241416826,0.20125,114350.0,114330.0,0.08963882]
[1754241417049,1.971088,114340.0,114330.0,0.02584882]
[1754241417246,1.971088,114340.0,114330.0,0.02289882]
[1754241417594,1.971088,114340.0,114330.0,0.08868882]
[1754241417837,1.971088,114340.0,114330.0,0.08663882]
[1754241418117,1.971088,114340.0,114330.0,0.7642032]
[1754241418329,1.971088,114340.0,114330.0,0.08873882]
[1754241418746,1.972088,114340.0,114330.0,0.08873882]
[1754241418949,0.001,114340.0,114330.0,0.08873882]
[1754241419116,0.001,114340.0,114330.0,0.09092547]
[1754241420342,0.001,114340.0,114330.0,0.17955831]
[1754241420556,0.001,114340.0,114330.0,0.17737166]
[1754241421214,0.001,114340.0,114330.0,0.77827934]
[1754241422255,0.18392739,114360.0,114330.0,0.77827934]
[1754241422488,0.18392739,114360.0,114340.0,0.2027]
[1754241422489,1.73369,114350.0,114340.0,0.2027]
[1754241422698,1.73369,114350.0,114340.0,0.2048]
[1754241422902,1.73369,114350.0,114340.0,0.07084]
[1754241423865,1.73369,114350.0,114340.0,0.10228117]
[1754241425153,1.73369,114350.0,114340.0,0.09728117]
[1754241425592,1.73369,114350.0,114340.0,0.09828117]
[1754241425996,1.73369,114350.0,114340.0,0.09928117]
[1754241426494,1.73369,114350.0,114340.0,0.06784]
[1754241427151,1.74187654,114350.0,114340.0,0.06784]
[1754241427386,0.00818654,114350.0,114340.0,0.06784]
[1754241428362,0.01334654,114350.0,114340.0,0.06574]
[1754241428574,0.08063654,114350.0,114340.0,0.06574]
[1754241428809,0.097017,114350.0,114340.0,0.002]
[1754241429025,1.830707,114350.0,114340.0,0.002]
[1754241429209,1.964707,114350.0,114340.0,0.002]
[1754241432284,1.73369,114340.0,114330.0,0.21464882]
[1754241432492,1.74187654,114340.0,114330.0,0.21662882]
[1754241432733,0.01319654,114340.0,114330.0,0.08266882]
[1754241432954,0.08089654,114340.0,114320.0,0.39716]
[1754241433168,0.09475312,114340.0,114320.0,0.15581284]
[1754241433410,0.00302,114330.0,114320.0,0.28981284]
[1754241433621,0.00501,114330.0,114320.0,0.28981284]
[1754241434040,0.00501,114330.0,114320.0,0.29179284]
[1754241434232,0.01321405,114330.0,114320.0,0.34760512]
[1754241434715,0.01321405,114330.0,114320.0,0.34960512]
[1754241434925,0.01321405,114330.0,114320.0,0.34760512]
[1754241435395,0.01321405,114330.0,114320.0,0.35160512]
[1754241435609,0.08091405,114330.0,114320.0,0.29381284]
[1754241435826,0.08091405,114330.0,114320.0,0.29481284]
[1754241436039,0.01321405,114330.0,114320.0,0.20618]
[1754241436254,0.02962571,114330.0,114320.0,0.20618]
[1754241436470,0.02962571,114330.0,114320.0,0.20518]
[1754241436889,0.02962571,114330.0,114320.0,0.20718]
[1754241437091,0.09732571,114330.0,114320.0,0.22753815]
[1754241437300,0.09732571,114330.0,114320.0,0.20718]
[1754241437543,0.09732571,114330.0,114320.0,0.07318]
[1754241437779,0.09732571,114330.0,114320.0,0.006]
[1754241438209,0.07271,114330.0,114320.0,0.006]
[1754241438433,1.83101816,114330.0,114320.0,0.006]
[1754241439122,1.83101816,114330.0,114320.0,0.004]
[1754241439370,1.73369,114320.0,114310.0,0.13308]
[1754241439607,1.76029816,114320.0,114310.0,0.13308]
[1754241439817,0.09732816,114320.0,114300.0,0.62430553]
[1754241440041,0.09732816,114320.0,114310.0,0.06718]
[1754241441147,0.0973215,114320.0,114310.0,0.06718]
[1754241441893,0.0973215,114320.0,114310.0,0.07118]
[1754241442989,0.0296215,114320.0,114310.0,0.07118]
[1754241443418,0.0973215,114320.0,114310.0,0.07118]
[1754241443856,0.0167517,114330.0,114310.0,0.11469809]
[1754241444070,0.00199,114320.0,114310.0,0.11469809]
[1754241444927,0.01568466,114320.0,114310.0,0.11780809]
[1754241445378,0.01568466,114320.0,114310.0,0.11880809]
[1754241445826,0.01568466,114320.0,114310.0,0.11780809]
[1754241446047,0.01568466,114320.0,114310.0,0.11980809]
[1754241446277,0.01568466,114320.0,114310.0,0.11480809]
[1754241446734,0.01568466,114320.0,114310.0,0.06618]
[1754241447994,0.01568466,114320.0,114310.0,0.2005]
[1754241448204,0.01568466,114320.0,114310.0,0.20046]
[1754241448642,0.01870466,114320.0,114310.0,0.20046]
[1754241448861,1.75239466,114320.0,114310.0,0.20046]
[1754241449282,1.75239466,114320.0,114310.0,0.06618]
[1754241450560,1.74937466,114320.0,114310.0,0.06618]
[1754241450773,1.75239466,114320.0,114310.0,0.06618]
[1754241450998,1.78754466,114320.0,114310.0,0.004]
[1754241451639,2.12754466,114320.0,114310.0,0.004]
[1754241451860,2.11385,114320.0,114310.0,0.004]
[1754241452351,1.912616,114320.0,114310.0,0.004]
[1754241452540,1.913606,114320.0,114310.0,0.004]
[1754241453198,1.534446,114310.0,114300.0,0.42304553]
[1754241453412,1.535436,114310.0,114300.0,0.42304553]
[1754241453649,0.00099,114310.0,114300.0,0.48522553]
[1754241453834,1.070586,114310.0,114300.0,0.41804553]
[1754241454394,1.035436,114310.0,114300.0,0.41804553]
[1754241455031,1.038436,114310.0,114300.0,0.41804553]
[1754241455251,1.413586,114310.0,114300.0,0.41804553]
[1754241455908,1.43814941,114310.0,114300.0,0.41804553]
[1754241456112,1.42996161,114310.0,114300.0,0.41804553]
[1754241457139,1.43198341,114310.0,114300.0,0.41804553]
[1754241457950,1.44017222,114310.0,114300.0,0.41804553]
[1754241458170,1.44017222,114310.0,114300.0,0.17704]
[1754241458853,1.45386934,114310.0,114300.0,0.17704]
[1754241459495,1.45387167,114310.0,114300.0,0.17704]
[1754241460862,1.45387167,114310.0,114300.0,0.17204]
[1754241462276,1.480383,114310.0,114300.0,0.17204]
[1754241464937,1.45387167,114310.0,114300.0,0.17204]
[1754241465569,1.44017455,114310.0,114300.0,0.17204]
[1754241465775,1.46649055,114310.0,114300.0,0.17204]
[1754241466342,1.48536072,114310.0,114300.0,0.17204]
[1754241467724,1.48536072,114310.0,114300.0,0.16704]
[1754241470035,1.49703859,114310.0,114300.0,0.16704]
[1754241473004,1.49705202,114310.0,114300.0,0.16704]
[1754241475086,1.49705202,114310.0,114300.0,0.16204]
[1754241475733,1.631296,114310.0,114300.0,0.16204]
[1754241476822,1.61759813,114310.0,114300.0,0.16204]
[1754241477068,1.58244813,114310.0,114300.0,0.16204]
[1754241478700,1.5824504,114310.0,114300.0,0.16204]
[1754241479663,1.59614837,114310.0,114300.0,0.16204]
[1754241480524,1.59614837,114310.0,114300.0,0.23118]
[1754241481566,1.59610837,114310.0,114300.0,0.23636]
[1754241482000,1.46091837,114310.0,114300.0,0.259996]
[1754241482260,1.46091837,114310.0,114300.0,0.23136]
[1754241482261,1.12091837,114310.0,114300.0,0.23136]
[1754241482475,1.56880237,114310.0,114300.0,0.23136]
[1754241482694,1.22880237,114310.0,114300.0,0.23136]
[1754241482914,1.20992822,114310.0,114300.0,0.23136]
[1754241483357,1.54992822,114310.0,114300.0,0.23136]
[1754241489288,1.54992822,114310.0,114300.0,0.22636]
[1754241489487,1.54992822,114310.0,114300.0,0.249496]
[1754241489781,1.41572822,114310.0,114300.0,0.249496]
[1754241490007,1.54996822,114310.0,114300.0,0.22636]
[1754241491519,1.39934023,114310.0,114300.0,0.22636]
[1754241491736,1.53354023,114310.0,114300.0,0.22636]
[1754241492517,1.52534397,114310.0,114300.0,0.22636]
[1754241494471,1.39114397,114310.0,114300.0,0.22636]
[1754241494689,1.52538397,114310.0,114300.0,0.22636]
[1754241496453,1.52538397,114310.0,114300.0,0.22136]
[1754241503411,1.39114397,114310.0,114300.0,0.21636]
[1754241503631,1.52530397,114310.0,114300.0,0.21636]
[1754241504334,1.51980773,114310.0,114300.0,0.21636]
[1754241504558,1.38564773,114310.0,114300.0,0.21636]
[1754241504777,1.51976773,114310.0,114300.0,0.21636]
[1754241505494,1.51980773,114310.0,114300.0,0.21636]
[1754241506874,1.511606,114310.0,114300.0,0.21636]
[1754241507351,1.53350802,114310.0,114300.0,0.21636]
[1754241509547,1.54992755,114310.0,114300.0,0.21636]
[1754241510427,1.54992755,114310.0,114300.0,0.21136]
[1754241512007,1.54992755,114310.0,114300.0,0.232496]
[1754241512222,1.54992755,114310.0,114300.0,0.21136]
[1754241515221,1.55190755,114310.0,114300.0,0.21136]
[1754241517243,1.55190755,114310.0,114300.0,0.20618]
[1754241517438,1.55190755,114310.0,114300.0,0.20118]
[1754241518019,1.55193322,114310.0,114300.0,0.20118]
[1754241519570,1.59147322,114310.0,114300.0,0.13204]
[1754241519779,1.61778808,114310.0,114300.0,0.13204]
[1754241520209,1.60409144,114310.0,114300.0,0.13204]
[1754241523043,1.61778878,114310.0,114300.0,0.13204]
[1754241524553,1.61778217,114310.0,114300.0,0.12704]
[1754241527987,1.60408483,114310.0,114300.0,0.12704]
[1754241528188,1.62300563,114310.0,114300.0,0.12704]
[1754241529527,1.35695683,114310.0,114300.0,0.12704]
[1754241531840,1.4023799,114310.0,114300.0,0.12704]
[1754241532202,1.41607849,114310.0,114300.0,0.12204]
[1754241532419,1.43352751,114310.0,114300.0,0.12204]
[1754241533245,1.43052751,114310.0,114300.0,0.12204]
[1754241533625,1.43252751,114310.0,114300.0,0.12204]
[1754241533833,1.43952751,114310.0,114300.0,0.12304]
[1754241535319,1.43950875,114310.0,114300.0,0.12304]
[1754241536209,1.42581016,114310.0,114300.0,0.12304]
[1754241537735,1.45081016,114310.0,114300.0,0.12304]
[1754241537956,1.47639839,114310.0,114300.0,0.12304]
[1754241539694,1.47639839,114310.0,114300.0,0.11804]
[1754241540304,1.4900985,114310.0,114300.0,0.11804]
[1754241540957,1.46447948,114310.0,114300.0,0.10304]
[1754241543285,1.46447795,114310.0,114300.0,0.10304]
[1754241545403,1.45077784,114310.0,114300.0,0.10304]
[1754241546710,1.45077784,114310.0,114300.0,0.09804]
[1754241547358,1.45073784,114310.0,114300.0,0.09804]
[1754241548029,1.45073784,114310.0,114300.0,0.07804]
[1754241548476,1.44871784,114310.0,114300.0,0.07804]
[1754241549776,1.4624176,114310.0,114300.0,0.07804]
[1754241549993,1.4644376,114310.0,114300.0,0.07804]
[1754241552049,1.4624176,114310.0,114300.0,0.07804]
[1754241553068,1.1224176,114310.0,114300.0,0.07804]
[1754241553714,1.1224176,114310.0,114300.0,0.07304]
[1754241553918,0.89926627,114310.0,114300.0,0.14436]
[1754241554136,1.01399725,114310.0,114300.0,0.14436]
[1754241554353,1.03144627,114310.0,114300.0,0.14436]
[1754241555015,1.03144627,114310.0,114300.0,0.10036]
[1754241555251,1.37144627,114310.0,114300.0,0.10036]
[1754241559729,1.35774651,114310.0,114300.0,0.10036]
[1754241560354,1.15887751,114310.0,114300.0,0.10036]
[1754241560557,1.18520769,114310.0,114300.0,0.10036]
[1754241560763,1.18520769,114310.0,114300.0,0.09536]
[1754241562089,1.05104769,114310.0,114300.0,0.06636]
[1754241562308,1.18512769,114310.0,114300.0,0.06636]
[1754241562715,1.19882679,114310.0,114300.0,0.06636]
[1754241563149,1.04729777,114310.0,114300.0,0.06636]
[1754241563347,1.18133777,114310.0,114300.0,0.06636]
[1754241564528,1.04729777,114310.0,114300.0,0.06636]
[1754241564752,1.18133777,114310.0,114300.0,0.06636]
[1754241564972,1.18331777,114310.0,114300.0,0.06636]
[1754241565417,1.04927777,114310.0,114300.0,0.06636]
[1754241565639,1.18331777,114310.0,114300.0,0.06636]
[1754241566284,1.2098291,114310.0,114300.0,0.06636]
[1754241567674,1.2097891,114310.0,114300.0,0.06636]
[1754241567863,1.2097891,114310.0,114300.0,0.06136]
[1754241569409,1.0757891,114310.0,114300.0,0.01736]
[1754241569612,1.2097891,114310.0,114300.0,0.01736]
[1754241570268,1.18125777,114310.0,114300.0,0.01736]
[1754241574982,1.18125777,114310.0,114300.0,0.01236]
[1754241574983,1.04730257,114310.0,114300.0,0.01236]
[1754241575192,1.18118257,114310.0,114300.0,0.01236]
[1754241575409,1.16748347,114310.0,114300.0,0.01236]
[1754241577177,0.69360347,114310.0,114300.0,0.01236]
[1754241577397,0.82748347,114310.0,114280.0,0.03907198]
[1754241577623,0.34,114290.0,114280.0,0.1077523]
[1754241577815,0.47388,114290.0,114280.0,0.1077523]
[1754241578058,0.47388,114290.0,114280.0,0.04338958]
[1754241578335,0.48209293,114290.0,114280.0,0.04338958]
[1754241578571,0.47388,114290.0,114280.0,0.04338958]
[1754241578827,0.48757875,114290.0,114280.0,0.04338958]
[1754241579040,0.35374622,114290.0,114280.0,0.04338958]
[1754241579446,0.614764,114290.0,114280.0,0.11357958]
[1754241579862,0.748684,114290.0,114280.0,0.11257958]
[1754241579988,0.13692,114290.0,114280.0,0.11257958]
[1754241580205,0.13692,114290.0,114280.0,0.14998248]
[1754241580873,0.003,114290.0,114280.0,0.14998248]
[1754241581440,0.003,114290.0,114280.0,0.07132]
[1754241582116,0.003,114290.0,114280.0,0.06777]
[1754241586484,0.003,114290.0,114280.0,0.0677]
[1754241589116,0.003,114290.0,114280.0,0.0627]
[1754241592556,0.00301,114300.0,114280.0,0.0627]
[1754241592765,0.614764,114290.0,114280.0,0.07423392]
[1754241593901,0.614764,114290.0,114280.0,0.07523392]
[1754241594065,0.614764,114290.0,114280.0,0.07423392]
[1754241595482,0.615764,114290.0,114280.0,0.07423392]
[1754241595690,0.001,114290.0,114280.0,0.06282479]
[1754241596912,0.001,114290.0,114280.0,0.05782479]
[1754241598546,0.00401,114290.0,114280.0,0.05782479]
[1754241599990,0.001,114290.0,114280.0,0.05782479]
[1754241600214,0.001,114290.0,114280.0,0.06001239]
[1754241600442,0.001,114290.0,114280.0,0.13882421]
[1754241600910,0.001,114290.0,114280.0,0.81553876]
[1754241601136,0.001,114290.0,114280.0,0.81426116]
[1754241601351,0.001,114290.0,114280.0,1.036734]
[1754241601819,0.001,114290.0,114280.0,1.063045]
[1754241602509,0.614764,114310.0,114280.0,1.063045]
[1754241602720,0.614764,114310.0,114290.0,0.60344566]
[1754241602944,0.34,114310.0,114300.0,0.00145]
[1754241603168,0.34,114310.0,114300.0,0.07233]
[1754241603804,0.34,114310.0,114300.0,0.06733]
[1754241604003,0.34301,114310.0,114300.0,0.06733]
[1754241604461,0.34401,114310.0,114300.0,0.04833]
[1754241605716,0.34301,114310.0,114300.0,0.04833]
[1754241606152,0.34401,114310.0,114300.0,0.04833]
[1754241606344,0.34401,114310.0,114300.0,0.18217]
[1754241608951,0.34607,114310.0,114300.0,0.18217]
[1754241611002,0.34607,114310.0,114300.0,0.17717]
[1754241611639,0.4151,114310.0,114300.0,0.16317]
[1754241612944,0.42879716,114310.0,114300.0,0.16317]
[1754241614950,0.08879716,114310.0,114300.0,0.16317]
[1754241616332,0.0751,114310.0,114300.0,0.16317]
[1754241618135,0.0751,114310.0,114300.0,0.15817]
[1754241618773,0.0751,114310.0,114300.0,0.14217]
[1754241618983,0.0751,114310.0,114300.0,0.13384]
[1754241619813,0.0751,114310.0,114300.0,0.1338]
[1754241620653,0.08879736,114310.0,114300.0,0.1338]
[1754241625292,0.08879736,114310.0,114300.0,0.1288]
[1754241625924,0.08879736,114310.0,114300.0,0.1018]
[1754241626407,0.09700429,114310.0,114300.0,0.1018]
[1754241627721,0.09700429,114310.0,114300.0,0.11918274]
[1754241628162,0.08879736,114310.0,114300.0,0.11918274]
[1754241628394,0.08879736,114310.0,114300.0,0.18902274]
[1754241628621,0.09700754,114310.0,114300.0,0.18902274]
[1754241628851,0.09700754,114310.0,114300.0,0.17164]
[1754241629081,0.08331018,114310.0,114300.0,0.17164]
[1754241632166,0.09701408,114310.0,114300.0,0.17164]
[1754241632308,0.09701408,114310.0,114300.0,0.16664]
[1754241632734,0.13384,114330.0,114300.0,0.16872]
[1754241632932,0.614764,114320.0,114300.0,0.25356312]
[1754241633318,0.614764,114310.0,114300.0,0.25356312]
[1754241633541,0.614764,114320.0,114300.0,0.25356312]
[1754241633755,0.614764,114310.0,114300.0,0.25360312]
[1754241634153,0.614764,114320.0,114300.0,0.25360312]
[1754241634363,0.614764,114310.0,114300.0,0.25360312]
[1754241634571,0.614764,114310.0,114300.0,0.16876]
[1754241634780,0.001,114310.0,114300.0,0.16876]
[1754241635205,0.614764,114310.0,114300.0,0.16876]
[1754241636157,0.616894,114310.0,114300.0,0.16876]
[1754241636398,0.00521,114310.0,114300.0,0.16876]
[1754241639449,0.00521,114310.0,114300.0,0.16376]
[1754241639673,0.00521,114310.0,114300.0,0.07196]
[1754241639906,0.07424,114310.0,114300.0,0.21137174]
[1754241644454,0.07424,114310.0,114300.0,0.20364]
[1754241644894,0.08245621,114310.0,114300.0,0.20364]
[1754241645657,0.01342621,114310.0,114300.0,0.20364]
[1754241645876,0.01342621,114310.0,114300.0,0.2058]
[1754241646741,0.01342621,114310.0,114300.0,0.2008]
[1754241646763,0.01342599,114310.0,114300.0,0.2008]
[1754241647399,0.01342599,114310.0,114300.0,0.221197]
[1754241647800,0.08558599,114310.0,114300.0,0.221197]
[1754241648435,0.01342599,114310.0,114300.0,0.221197]
[1754241650560,0.01342599,114310.0,114300.0,0.2008]
[1754241651798,0.01034599,114310.0,114300.0,0.2008]
[1754241652017,0.00821599,114310.0,114300.0,0.2008]
[1754241652380,0.08910737,114320.0,114300.0,0.2008]
[1754241652607,0.614764,114310.0,114300.0,0.2008]
[1754241652838,0.00821576,114310.0,114300.0,0.221197]
[1754241653288,0.00821576,114310.0,114300.0,0.224377]
[1754241653509,0.00821576,114310.0,114300.0,0.20398]
[1754241653738,0.00821576,114310.0,114300.0,0.19898]
[1754241654071,0.00921576,114310.0,114300.0,0.19898]
[1754241656427,0.02957009,114330.0,114300.0,0.19898]
[1754241656720,0.614764,114320.0,114310.0,0.06739]
[1754241656872,0.63325502,114320.0,114310.0,0.06739]
[1754241658097,0.63325502,114320.0,114310.0,0.02339]
[1754241658443,0.63525502,114320.0,114310.0,0.02339]
[1754241659268,0.70841502,114320.0,114310.0,0.02339]
[1754241660907,0.70841502,114320.0,114310.0,0.01839]
[1754241662637,0.614764,114310.0,114300.0,0.13698]
[1754241662843,0.616824,114310.0,114300.0,0.13914]
[1754241662993,0.616824,114310.0,114300.0,0.06743]
[1754241663210,0.692234,114310.0,114300.0,4e-05]
[1754241663825,0.70866534,114310.0,114300.0,4e-05]
[1754241664823,0.84242534,114310.0,114300.0,4e-05]
[1754241666771,0.8561242,114310.0,114300.0,4e-05]
[1754241667174,0.84242534,114310.0,114300.0,4e-05]
[1754241667602,0.86134297,114310.0,114300.0,4e-05]
[1754241667805,1.20134297,114310.0,114300.0,4e-05]
[1754241668016,1.20134297,114310.0,114270.0,0.22366205]
[1754241668246,1.20134297,114310.0,114270.0,0.22370952]
[1754241668247,0.690174,114300.0,114270.0,0.22370952]
[1754241668451,0.748524,114290.0,114270.0,0.22370952]
[1754241668765,0.614764,114280.0,114270.0,0.15631952]
[1754241668959,0.614764,114280.0,114270.0,0.18796167]
[1754241669109,0.614764,114280.0,114270.0,0.25535167]
[1754241669551,0.63776002,114280.0,114270.0,0.25535167]
[1754241669948,0.63776002,114280.0,114270.0,0.12159167]
[1754241670192,0.63776002,114280.0,114270.0,0.12459167]
[1754241670605,0.63776002,114280.0,114270.0,0.12859167]
[1754241671021,0.63776002,114280.0,114270.0,0.13159167]
[1754241672454,0.63776002,114280.0,114270.0,0.10210952]
[1754241675112,0.63776002,114280.0,114270.0,0.09710952]
[1754241682286,0.63776002,114280.0,114270.0,0.09210952]
[1754241683989,0.63991002,114280.0,114270.0,0.09210952]
[1754241685431,0.63991002,114280.0,114270.0,0.08892952]
[1754241687142,0.6397475,114280.0,114270.0,0.08892952]
[1754241688727,0.6397475,114280.0,114270.0,0.11418817]
[1754241689373,0.6397475,114280.0,114270.0,0.10918817]
[1754241690053,0.6397475,114280.0,114270.0,0.08392952]
[1754241691409,0.7103975,114280.0,114270.0,0.14813952]
[1754241691620,0.7103975,114280.0,114270.0,0.01437952]
[1754241691830,0.7103975,114280.0,114270.0,0.14813952]
[1754241692516,0.7103975,114280.0,114270.0,0.01437952]
[1754241694201,0.7103975,114280.0,114270.0,0.01137952]
[1754241694451,0.7103975,114280.0,114270.0,0.00437952]
[1754241694681,0.7103975,114280.0,114270.0,0.00937952]
[1754241695136,0.72409763,114280.0,114270.0,0.00937952]
[1754241695770,0.85785763,114280.0,114270.0,0.00937952]
[1754241696220,0.85785763,114280.0,114270.0,0.00437952]
[1754241696431,0.614602,114270.0,114260.0,0.13353952]
[1754241696644,0.00215,114270.0,114250.0,0.166458]
[1754241696851,0.0728,114270.0,114260.0,0.06907]
[1754241697273,0.0728,114270.0,114260.0,0.13376]
[1754241697489,0.0728,114270.0,114260.0,0.20583]
[1754241697490,0.08101446,114270.0,114260.0,0.20583]
[1754241698080,0.614602,114270.0,114260.0,0.21108]
[1754241698299,0.614602,114270.0,114260.0,0.07732]
[1754241698498,0.614602,114270.0,114260.0,0.1057517]
[1754241699356,0.614602,114270.0,114260.0,0.07932]
[1754241699978,0.614762,114270.0,114260.0,0.07725]
[1754241703527,0.614762,114270.0,114260.0,0.07225]
[1754241705888,0.648122,114270.0,114260.0,0.005]
[1754241706109,0.614762,114270.0,114260.0,0.005]
[1754241706508,0.614762,114270.0,114260.0,0.07795]
[1754241707168,0.614762,114270.0,114260.0,0.08091]
[1754241710639,0.62296999,114270.0,114260.0,0.08091]
[1754241710854,0.62296999,114270.0,114260.0,0.07591]
[1754241712945,0.65632999,114270.0,114250.0,0.262907]
[1754241713142,0.614602,114260.0,114250.0,0.262907]
[1754241713335,0.614602,114260.0,114250.0,0.265067]
[1754241713538,0.614602,114270.0,114250.0,0.265067]
[1754241713741,0.614602,114260.0,114250.0,0.265067]
[1754241713943,0.614602,114270.0,114250.0,0.21503]
[1754241714182,0.614602,114260.0,114250.0,0.21703]
[1754241714415,0.614602,114260.0,114250.0,0.21903]
[1754241714872,0.614602,114260.0,114250.0,0.21703]
[1754241715073,0.614762,114260.0,114250.0,0.21703]
[1754241715448,0.614762,114260.0,114250.0,0.21287]
[1754241715872,0.614762,114260.0,114250.0,0.21587]
[1754241716929,0.614762,114260.0,114250.0,0.21787]
[1754241717558,0.614762,114260.0,114250.0,0.21491]
[1754241718565,0.614762,114260.0,114250.0,0.20867]
[1754241718836,0.614762,114260.0,114250.0,0.20667]
[1754241719036,0.616762,114260.0,114250.0,0.20667]
[1754241719222,0.62497104,114260.0,114250.0,0.20963]
[1754241719438,0.616762,114260.0,114250.0,0.07591]
[1754241720273,0.63967345,114260.0,114250.0,0.07591]
[1754241720482,0.63967345,114260.0,114250.0,0.07807]
[1754241720701,0.63967345,114260.0,114250.0,0.099249]
[1754241721501,0.63967345,114260.0,114250.0,0.07807]
[1754241722089,0.62597157,114260.0,114250.0,0.07807]
[1754241725165,0.617762,114260.0,114250.0,0.07807]
[1754241725734,0.617762,114260.0,114250.0,0.07307]
[1754241726140,0.62597252,114260.0,114250.0,0.07307]
[1754241726520,0.617762,114260.0,114250.0,0.07307]
[1754241727138,0.617762,114260.0,114250.0,0.093749]
[1754241727344,0.617762,114260.0,114250.0,0.07307]
[1754241727770,0.62597282,114260.0,114250.0,0.07307]
[1754241731717,0.63967482,114260.0,114250.0,0.07307]
[1754241731930,0.63967482,114260.0,114250.0,0.07284187]
[1754241732807,0.63967482,114260.0,114250.0,0.06784187]
[1754241733055,0.63967482,114260.0,114250.0,0.06568187]
[1754241737817,0.63967482,114260.0,114250.0,0.06768187]
[1754241739824,0.63967482,114260.0,114250.0,0.06268187]
[1754241742737,0.63951482,114260.0,114250.0,0.06268187]
[1754241743842,0.02491282,114260.0,114250.0,0.08232206]
[1754241745152,0.02491282,114260.0,114250.0,0.06268187]
[1754241745907,0.01121082,114260.0,114250.0,0.06268187]
[1754241746948,0.01121082,114260.0,114250.0,0.05768187]
[1754241748531,0.01121082,114260.0,114250.0,0.73478942]
[1754241748735,0.01121082,114260.0,114250.0,0.05768187]
[1754241750249,0.003,114260.0,114250.0,0.05768187]
[1754241750675,0.01370163,114270.0,114250.0,0.08195231]
[1754241750825,0.614602,114260.0,114250.0,0.02627044]
[1754241751420,0.614602,114260.0,114250.0,0.09983044]
[1754241753818,0.614602,114260.0,114250.0,0.07556]
[1754241754028,0.614602,114260.0,114250.0,0.07056]
[1754241754239,0.62498956,114260.0,114250.0,0.07256]
[1754241754439,0.01038756,114260.0,114250.0,0.07256]
[1754241754981,0.01038756,114260.0,114250.0,0.07249]
[1754241756492,0.01038756,114260.0,114250.0,0.07556]
[1754241759772,0.01038756,114260.0,114250.0,0.07249]
[1754241759977,0.01334756,114260.0,114250.0,0.07249]
[1754241760249,0.01038756,114260.0,114250.0,0.07249]
[1754241760995,0.01038756,114260.0,114250.0,0.06749]
[1754241762128,0.01038756,114260.0,114250.0,0.19917]
[1754241762284,0.01333756,114260.0,114250.0,0.19917]
[1754241763222,0.01038756,114260.0,114250.0,0.19917]
[1754241763903,0.01038756,114260.0,114250.0,0.20123]
[1754241765522,0.01038756,114260.0,114250.0,0.20419]
[1754241768237,0.01038756,114260.0,114250.0,0.19919]
[1754241772037,0.00821756,114260.0,114250.0,0.19919]
[1754241776125,0.00821756,114260.0,114250.0,0.19419]
[1754241781426,0.62486956,114260.0,114250.0,0.05755]
[1754241781648,0.614602,114250.0,114240.0,0.06758]
[1754241781878,0.616652,114250.0,114240.0,0.20126]
[1754241782316,0.62487077,114250.0,114240.0,0.20126]
[1754241783034,0.62487077,114250.0,114240.0,0.19626]
[1754241784201,0.959602,114250.0,114240.0,0.06258]
[1754241784576,0.959602,114250.0,114240.0,0.19626]
[1754241785557,0.9678168,114250.0,114240.0,0.19626]
[1754241786236,0.96781583,114250.0,114240.0,0.19626]
[1754241787897,0.96486583,114250.0,114240.0,0.19626]
[1754241788251,0.956652,114250.0,114240.0,0.19626]
[1754241789729,0.956652,114250.0,114240.0,0.19832]
[1754241790310,0.714764,114250.0,114240.0,0.19832]
[1754241790751,0.714764,114250.0,114240.0,0.19332]
[1754241790980,0.714764,114250.0,114240.0,0.212988]
[1754241791210,0.714764,114250.0,114240.0,0.215968]
[1754241793881,0.714764,114250.0,114240.0,0.1963]
[1754241794053,0.712714,114250.0,114240.0,0.87340755]
[1754241794748,0.712714,114250.0,114240.0,0.1963]
[1754241795822,0.712714,114250.0,114240.0,0.87340755]
[1754241797767,0.712714,114250.0,114240.0,0.86840755]
[1754241797909,0.712714,114250.0,114240.0,0.93267549]
[1754241799015,0.712714,114250.0,114240.0,0.25556794]
[1754241799727,0.712714,114250.0,114240.0,0.05762]
[1754241799930,0.712714,114250.0,114240.0,0.1913]
[1754241800363,0.51333622,114250.0,114240.0,0.1913]
[1754241800702,0.372714,114250.0,114240.0,0.1913]
[1754241801449,0.374824,114250.0,114240.0,0.1913]
[1754241803167,0.374824,114250.0,114240.0,0.20511827]
[1754241803814,0.374824,114250.0,114240.0,0.1913]